fUST/lending_fUST_20240818
["ID","MTS","AMOUNT","RATE_DAILY","PERIOD"]
[335210318,1723980641596,-525.04143367,0.00013699,2]
[335210319,1723980641605,-525.04143367,0.00013699,2]
[335210320,1723980641614,-525.04143367,0.00013699,2]
[335210321,1723980641624,-525.04143367,0.00013699,2]
[335210322,1723980641634,-525.04143367,0.00013699,2]
[335210323,1723980641644,-525.04143367,0.00013699,2]
[335210324,1723980641654,-525.04143363,0.00013699,2]
[335210325,1723980641663,-587.0,0.0001373,2]
[335210326,1723980641672,-20713.46482487,0.00014,4]
[335210327,1723980641682,-895.92966664,0.0001404,2]
[335210328,1723980641691,-161.3640269,0.00014247,2]
[335210329,1723980641702,-226.235139,0.00014247,2]
[335210330,1723980641712,-1775.26291791,0.00014977,2]
[335210331,1723980641721,-5244.23039316,0.00015,2]
[335210332,1723980641731,-155.14004745,0.00015,2]
[335210333,1723980641741,-823.0,0.00015103,2]
[335210334,1723980641753,-7794.93795711,0.00015491,2]
[335210335,1723980641763,-334.42391633,0.00015707,7]
[335210336,1723980641773,-3343.83425335,0.000159,2]
[335210337,1723980641782,-500.0,0.00015958,2]
[335210338,1723980641792,-1009.21986791,0.00016,2]
[335210339,1723980641802,-33720.69177655,0.00016338,2]
[335210340,1723980641811,-500.0,0.00016438,2]
[335210341,1723980641821,-500.0,0.00016438,2]
[335210342,1723980641830,-500.0,0.00016438,2]
[335210343,1723980641839,-500.0,0.00016438,2]
[335210344,1723980641850,-524.25,0.00016438,2]
[335210345,1723980641859,-500.0,0.00016438,2]
[335210346,1723980641869,-569.29,0.00016438,2]
[335210347,1723980641878,-500.0,0.00016438,2]
[335210348,1723980641888,-500.0,0.00016438,2]
[335210349,1723980641897,-500.0,0.00016438,2]
[335210350,1723980641907,-500.0,0.00016438,2]
[335210351,1723980641916,-502.75146287,0.00016438,2]
[335210352,1723980641926,-500.0,0.00016438,2]
[335210353,1723980641935,-500.0,0.00016438,2]
[335210354,1723980641945,-500.0,0.00016438,2]
[335210355,1723980641955,-500.0,0.00016438,2]
[335210356,1723980641965,-500.0,0.00016438,2]
[335210357,1723980641974,-505.3599567,0.00016438,2]
[335210358,1723980641985,-500.0,0.00016438,2]
[335210359,1723980641994,-500.0,0.00016438,2]
[335210360,1723980642004,-500.0,0.00016438,2]
[335210361,1723980642015,-500.0,0.00016438,2]
[335210362,1723980642026,-500.0,0.00016438,2]
[335210363,1723980642036,-500.0,0.00016438,2]
[335210364,1723980642046,-500.0,0.00016438,2]
[335210365,1723980642056,-150.0,0.00016438,2]
[335210366,1723980642068,-500.0,0.00016438,2]
[335210367,1723980642078,-500.0,0.00016438,2]
[335210368,1723980642089,-567.15,0.00016438,2]
[335210369,1723980642101,-554.81,0.00016438,2]
[335210370,1723980642110,-501.6854391,0.00016438,2]
[335210371,1723980642121,-500.0,0.00016438,2]
[335210372,1723980642130,-1056.27,0.00016438,2]
[335210373,1723980642140,-500.0,0.00016438,2]
[335210374,1723980642150,-469.50897845,0.00016438,2]
[335210375,1723980642160,-500.0,0.00016438,2]
[335210376,1723980642169,-500.0,0.00016438,2]
[335210377,1723980642180,-500.0,0.00016438,2]
[335210378,1723980642189,-500.0,0.00016438,2]
[335210379,1723980642199,-500.0,0.00016438,2]
[335210380,1723980642208,-500.0,0.00016438,2]
[335210381,1723980642218,-2005.0,0.00016438,10]
[335210382,1723980642228,-500.0,0.00016438,2]
[335210383,1723980642237,-523.12,0.00016438,2]
[335210384,1723980642247,-200.0,0.00016438,2]
[335210385,1723980642256,-277.50710305,0.00016438,2]
[335210386,1723980642266,-500.0,0.00016438,2]
[335210387,1723980642275,-500.0,0.00016438,2]
[335210388,1723980642285,-500.0,0.00016438,2]
[335210389,1723980642296,-500.0,0.00016438,2]
[335210390,1723980642305,-500.0,0.00016438,2]
[335210391,1723980642316,-358.34557652,0.00016438,2]
[335210392,1723980642327,-500.0,0.00016438,2]
[335210393,1723980642338,-500.0,0.00016438,2]
[335210394,1723980642350,-500.0,0.00016438,2]
[335210395,1723980642360,-500.0,0.00016438,2]
[335210396,1723980642372,-500.0,0.00016438,2]
[335210397,1723980642382,-500.0,0.00016438,2]
[335210398,1723980642392,-500.0,0.00016438,2]
[335210399,1723980642402,-500.0,0.00016438,2]
[335210400,1723980642412,-513.43,0.00016438,2]
[335210402,1723980642421,-500.0,0.00016438,2]
[335210403,1723980642430,-516.15,0.00016438,2]
[335210406,1723980642440,-500.0,0.00016438,2]
[335210408,1723980642450,-603.99,0.00016438,2]
[335210411,1723980642459,-500.0,0.00016438,2]
[335210413,1723980642469,-305.32793756,0.00016438,2]
[335210415,1723980642478,-500.0,0.00016438,2]
[335210417,1723980642488,-500.0,0.00016438,2]
[335210419,1723980642498,-500.0,0.00016438,2]
[335210421,1723980642508,-342.02009957,0.00016438,2]
[335210423,1723980642517,-500.0,0.00016438,2]
[335210425,1723980642527,-500.0,0.00016438,2]
[335210427,1723980642537,-500.0,0.00016438,2]
[335210429,1723980642546,-500.0,0.00016438,2]
[335210430,1723980642555,-532.0,0.00016438,2]
[335210431,1723980642566,-511.23,0.00016438,2]
[335210432,1723980642576,-500.0,0.00016438,2]
[335210433,1723980642586,-500.0,0.00016438,2]
[335210434,1723980642595,-500.0,0.00016438,2]
[335210435,1723980642604,-500.0,0.00016438,2]
[335210436,1723980642614,-500.0,0.00016438,2]
[335210437,1723980642623,-500.0,0.00016438,2]
[335210438,1723980642634,-626.76,0.00016438,2]
[335210439,1723980642644,-500.0,0.00016438,2]
[335210440,1723980642654,-500.0,0.00016438,2]
[335210441,1723980642663,-500.0,0.00016438,2]
[335210442,1723980642672,-500.0,0.00016438,2]
[335210443,1723980642682,-500.0,0.00016438,2]
[335210444,1723980642691,-500.0,0.00016438,2]
[335210445,1723980642701,-570.24,0.00016438,2]
[335210446,1723980642711,-500.0,0.00016438,2]
[335210447,1723980642720,-787.13,0.00016438,2]
[335210448,1723980642730,-500.0,0.00016438,2]
[335210450,1723980642739,-500.0,0.00016438,2]
[335210451,1723980642749,-500.0,0.00016438,2]
[335210452,1723980642759,-500.0,0.00016438,2]
[335210453,1723980642769,-500.0,0.00016438,2]
[335210454,1723980642779,-500.0,0.00016438,2]
[335210455,1723980642788,-500.0,0.00016438,2]
[335210456,1723980642798,-500.0,0.00016438,2]
[335210457,1723980642808,-500.0,0.00016438,2]
[335210458,1723980642818,-500.0,0.00016438,2]
[335210459,1723980642829,-500.0,0.00016438,2]
[335210460,1723980642838,-500.0,0.00016438,2]
[335210461,1723980642847,-500.0,0.00016438,2]
[335210462,1723980642857,-500.0,0.00016438,2]
[335210463,1723980642866,-222.26104148,0.00016438,2]
[335210464,1723980643384,-94.23272109,0.00012934,2]
[335210470,1723980696160,166.4,5.479e-05,2]
[335210474,1723980740631,154.71377951,6.641e-05,2]
[335210479,1723980754529,245.30609513,6.641e-05,2]
[335210480,1723980756802,269.90539932,6.641e-05,7]
[335210481,1723980762323,3312.84647178,6.641e-05,2]
[335210482,1723980774334,181.78808614,6.641e-05,2]
[335210483,1723980778849,199.21576407,5.479e-05,2]
[335210484,1723980779579,4720.37412615,5.479e-05,2]
[335210487,1723980806567,269.90539932,8.05e-05,7]
[335210490,1723980862585,269.90539932,9.757e-05,7]
[335210497,1723980996834,166.4,5.479e-05,2]
[335210498,1723981000628,5000.0,7.8e-05,2]
[335210500,1723981016081,1427.70742006,7.8e-05,2]
[335210503,1723981069827,405.39053387,7.8e-05,2]
[335210504,1723981071038,218.70409946,7.8e-05,2]
[335210506,1723981075149,2112.29265619,7.8e-05,2]
[335210507,1723981077023,155.37252349,7.8e-05,2]
[335210508,1723981078335,822.99961943,7.8e-05,2]
[335210509,1723981088833,938.91313571,7.8e-05,2]
[335210510,1723981118833,938.91313571,7.8e-05,2]
[335210511,1723981149830,405.39053387,7.8e-05,2]
[335210515,1723981239051,271.57538297,7.8e-05,2]
[335210517,1723981249931,188.40371789,7.8e-05,2]
[335210518,1723981272134,230.15361077,7.8e-05,2]
[335210519,1723981296331,166.4,5.479e-05,2]
[335210523,1723981374066,1653.0,0.00013,30]
[335210529,1723981595959,166.4,5.479e-05,2]
[335210530,1723981621126,269.90539932,0.00010081,7]
[335210532,1723981672727,269.90539932,6.641e-05,7]
[335210533,1723981722634,269.90539932,8.05e-05,7]
[335210535,1723981752191,-389.87430465,7.911e-05,2]
[335210536,1723981763186,-144.71248131,7.911e-05,2]
[335210537,1723981763208,-300.0,9.304e-05,2]
[335210538,1723981763230,-300.0,9.304e-05,2]
[335210539,1723981763263,-24900.0,9.305e-05,2]
[335210540,1723981763284,-154.85281568,9.524e-05,2]
[335210541,1723981763308,-250.0,9.935e-05,2]
[335210542,1723981763329,-250.0,9.962e-05,2]
[335210543,1723981763352,-250.0,9.989e-05,2]
[335210544,1723981763373,-1671.09905836,0.0001,2]
[335210545,1723981763393,-816.29130184,0.0001,2]
[335210546,1723981763414,-5229.0632972,0.00010001,2]
[335210547,1723981763436,-250.0,0.00010016,2]
[335210548,1723981763457,-250.0,0.00010043,2]
[335210549,1723981763482,-250.0,0.00010071,2]
[335210550,1723981763505,-250.0,0.00010098,2]
[335210551,1723981763532,-250.0,0.00010125,2]
[335210552,1723981763555,-250.0,0.00010152,2]
[335210553,1723981763578,-250.0,0.0001018,2]
[335210554,1723981763599,-250.0,0.00010207,2]
[335210555,1723981763621,-250.0,0.00010234,2]
[335210556,1723981763643,-420.0,0.00010235,2]
[335210557,1723981763664,-420.0,0.00010235,2]
[335210558,1723981763685,-250.0,0.00010261,2]
[335210559,1723981763706,-250.0,0.00010289,2]
[335210560,1723981763728,-250.0,0.00010316,2]
[335210561,1723981763751,-250.0,0.00010343,2]
[335210562,1723981763772,-250.0,0.0001037,2]
[335210563,1723981763792,-250.0,0.00010398,2]
[335210564,1723981763813,-250.0,0.00010425,2]
[335210565,1723981763833,-250.0,0.00010452,2]
[335210566,1723981763854,-3740.042458,0.00010722,2]
[335210567,1723981763875,-404.39043971,0.00010739,2]
[335210568,1723981763896,-552.74,0.00010959,2]
[335210569,1723981763918,-587.0,0.00011258,2]
[335210570,1723981763940,-587.0,0.00011258,2]
[335210571,1723981763961,-4006.94118197,0.00011409,2]
[335210573,1723981796633,160.58725483,9.589e-05,7]
[335210623,1723981837810,-1751.86092314,0.0001,2]
[335210624,1723981837819,-404.39043971,0.0001026,2]
[335210625,1723981837829,-55464.07600172,0.00010544,2]
[335210626,1723981837838,-157.07977921,0.00011409,2]
[335210627,1723981837847,-342.62154213,0.00011409,2]
[335210628,1723981837856,-157.07977921,0.00011409,2]
[335210629,1723981837865,-42407.2799269,0.00011409,2]
[335210630,1723981837875,-6083.55123393,0.00011631,2]
[335210631,1723981837884,-190.05416468,0.00011712,2]
[335210632,1723981837894,-20792.59733498,0.00011731,2]
[335210633,1723981837903,-53188.1551369,0.000119,2]
[335210634,1723981837912,-7012.68235792,0.00011987,2]
[335210635,1723981837921,-53188.1551369,0.00011989,2]
[335210636,1723981837930,-8843.52115837,0.00011999,2]
[335210637,1723981837939,-9656.22406339,0.0001212,2]
[335210638,1723981837948,-2712.30651884,0.00012163,2]
[335210639,1723981837958,-1766.30882102,0.00012356,2]
[335210640,1723981837967,-53188.1551369,0.00012506,2]
[335210641,1723981837976,-1500.0,0.00012516,2]
[335210642,1723981837985,-1500.0,0.00012516,2]
[335210643,1723981837994,-2166.01446806,0.00012629,2]
[335210644,1723981838003,-6083.55123391,0.00012758,2]
[335210645,1723981838014,-1613.2972388,0.00012779,2]
[335210646,1723981838027,-932.97417014,0.00012782,2]
[335210647,1723981838036,-728.56380751,0.00012886,2]
[335210648,1723981838046,-288.24477057,0.00012898,2]
[335210649,1723981838055,-2127.82180592,0.00012898,2]
[335210650,1723981838065,-611.77058565,0.00012898,2]
[335210651,1723981838074,-543.94914029,0.00012898,2]
[335210652,1723981838082,-163.97403053,0.00012898,2]
[335210653,1723981838092,-199.0907769,0.00012898,2]
[335210654,1723981838101,-5846.20346785,0.000129,2]
[335210655,1723981838110,-160.39523982,0.00012934,2]
[335210656,1723981838119,-210.21705151,0.00012934,2]
[335210657,1723981838128,-280.35654095,0.00012934,2]
[335210658,1723981838137,-507.68225874,0.00012934,2]
[335210659,1723981838146,-369.64260227,0.00012934,2]
[335210660,1723981838155,-196.79108262,0.00012934,2]
[335210661,1723981838165,-688.45853838,0.00012934,2]
[335210662,1723981838174,-154.79103211,0.00012971,2]
[335210663,1723981838183,-569.49565221,0.00012971,2]
[335210664,1723981838192,-154.79103211,0.00012985,2]
[335210665,1723981838202,-779.97165007,0.00012985,2]
[335210666,1723981838211,-154.69833824,0.00012989,2]
[335210667,1723981838220,-493.25192424,0.00012991,2]
[335210668,1723981838229,-154.69833824,0.00013,2]
[335210669,1723981838239,-301.50555711,0.00013333,2]
[335210670,1723981838248,-301.50555711,0.00013333,2]
[335210671,1723981838257,-5846.20346783,0.00013485,2]
[335210672,1723981838267,-572.93272925,0.00013698,2]
[335210673,1723981838276,-500.0,0.00013698,2]
[335210674,1723981838286,-500.0,0.00013698,2]
[335210675,1723981838296,-500.0,0.00013698,2]
[335210676,1723981838306,-500.0,0.00013698,2]
[335210677,1723981838316,-500.0,0.00013698,2]
[335210678,1723981838330,-500.0,0.00013698,2]
[335210679,1723981838339,-500.0,0.00013698,2]
[335210680,1723981838348,-500.0,0.00013698,2]
[335210681,1723981838357,-500.0,0.00013698,2]
[335210682,1723981838367,-422.76763368,0.00013698,2]
[335210683,1723981838376,-500.0,0.00013698,2]
[335210684,1723981838386,-500.0,0.00013698,2]
[335210685,1723981838395,-929.8374759,0.00013699,2]
[335210686,1723981838404,-449.870563,0.00013699,2]
[335210687,1723981838414,-500.0,0.00013699,2]
[335210688,1723981838423,-500.0,0.00013699,2]
[335210689,1723981838432,-500.0,0.00013699,2]
[335210690,1723981838442,-500.0,0.00013699,2]
[335210691,1723981838451,-500.0,0.00013699,2]
[335210692,1723981838461,-500.0,0.00013699,2]
[335210693,1723981838470,-500.0,0.00013699,2]
[335210694,1723981838479,-190.02883029,0.00013699,2]
[335210695,1723981838489,-500.0,0.00013699,2]
[335210696,1723981838498,-500.0,0.00013699,2]
[335210697,1723981838508,-500.0,0.00013699,2]
[335210698,1723981838519,-6083.55123391,0.00013885,2]
[335210699,1723981838528,-494.04927211,0.00013971,2]
[335210700,1723981838538,-53188.1551369,0.0001409,2]
[335210701,1723981838548,-230.043354,0.00014247,2]
[335210702,1723981838557,-214.923382,0.00014247,2]
[335210703,1723981838567,-155.1152318,0.00014519,2]
[335210704,1723981838576,-6083.55123391,0.00015011,2]
[335210705,1723981838585,-5244.23039316,0.00015213,2]
[335210706,1723981838595,-500.0,0.00015958,2]
[335210707,1723981838605,-6083.55123391,0.00016138,2]
[335210708,1723981838614,-5327.60651547,0.00016166,2]
[335210709,1723981838623,-106376.310274,0.00016228,2]
[335210710,1723981838632,-88888.0,0.00016238,2]
[335210711,1723981838642,-15938.74467947,0.00016338,2]
[335210712,1723981838652,-150.112236,0.000164,2]
[335210713,1723981838661,-505.1839245,0.00016438,2]
[335210714,1723981838671,-500.0,0.00016438,2]
[335210715,1723981838680,-568.95,0.00016438,2]
[335210716,1723981838689,-500.0,0.00016438,2]
[335210717,1723981838699,-500.0,0.00016438,2]
[335210718,1723981838708,-500.0,0.00016438,2]
[335210719,1723981838717,-500.0,0.00016438,2]
[335210720,1723981838727,-500.0,0.00016438,2]
[335210721,1723981838736,-506.21095604,0.00016438,2]
[335210722,1723981838746,-517.56,0.00016438,2]
[335210723,1723981838756,-500.0,0.00016438,2]
[335210724,1723981838766,-438.90798884,0.00016438,2]
[335210725,1723981838775,-500.0,0.00016438,2]
[335210726,1723981838784,-500.0,0.00016438,2]
[335210727,1723981838793,-505.89984748,0.00016438,2]
[335210728,1723981838802,-500.0,0.00016438,2]
[335210729,1723981838811,-500.0,0.00016438,2]
[335210730,1723981838820,-500.0,0.00016438,2]
[335210731,1723981838976,-500.0,0.00016438,2]
[335210732,1723981838986,-500.0,0.00016438,2]
[335210733,1723981838996,-500.0,0.00016438,2]
[335210734,1723981839006,-500.0,0.00016438,2]
[335210735,1723981839016,-464.00191856,0.00016438,2]
[335210736,1723981839025,-500.0,0.00016438,2]
[335210737,1723981839035,-504.4466559,0.00016438,2]
[335210738,1723981839045,-500.0,0.00016438,2]
[335210739,1723981839056,-500.0,0.00016438,2]
[335210740,1723981839065,-500.0,0.00016438,2]
[335210741,1723981839074,-500.0,0.00016438,2]
[335210742,1723981839084,-531.8,0.00016438,2]
[335210743,1723981839093,-500.0,0.00016438,2]
[335210744,1723981839103,-502.55370451,0.00016438,2]
[335210745,1723981839113,-500.0,0.00016438,2]
[335210746,1723981839123,-500.0,0.00016438,2]
[335210747,1723981839132,-500.0,0.00016438,2]
[335210748,1723981839142,-500.0,0.00016438,2]
[335210749,1723981839151,-500.0,0.00016438,2]
[335210750,1723981839161,-500.0,0.00016438,2]
[335210751,1723981839170,-509.0240187,0.00016438,2]
[335210752,1723981839179,-500.0,0.00016438,2]
[335210753,1723981839190,-500.0,0.00016438,2]
[335210754,1723981839201,-500.0,0.00016438,2]
[335210755,1723981839211,-500.0,0.00016438,2]
[335210756,1723981839221,-500.0,0.00016438,2]
[335210757,1723981839231,-505.7191295,0.00016438,2]
[335210758,1723981839242,-511.30904075,0.00016438,2]
[335210759,1723981839253,-500.0,0.00016438,2]
[335210760,1723981839264,-500.0,0.00016438,2]
[335210761,1723981839273,-500.0,0.00016438,2]
[335210762,1723981839284,-500.0,0.00016438,2]
[335210763,1723981839293,-500.0,0.00016438,2]
[335210764,1723981839303,-500.0,0.00016438,2]
[335210765,1723981839313,-500.0,0.00016438,2]
[335210766,1723981839326,-500.0,0.00016438,2]
[335210767,1723981839336,-500.0,0.00016438,2]
[335210768,1723981839346,-500.0,0.00016438,2]
[335210769,1723981839355,-923.78,0.00016438,2]
[335210770,1723981839365,-500.0,0.00016438,2]
[335210771,1723981839375,-500.0,0.00016438,2]
[335210772,1723981839385,-500.0,0.00016438,2]
[335210773,1723981839394,-638.9,0.00016438,2]
[335210774,1723981839404,-500.0,0.00016438,2]
[335210775,1723981839415,-500.0,0.00016438,2]
[335210776,1723981839424,-500.0,0.00016438,2]
[335210777,1723981839434,-500.0,0.00016438,2]
[335210778,1723981839444,-500.0,0.00016438,2]
[335210779,1723981839453,-500.0,0.00016438,2]
[335210780,1723981839463,-500.0,0.00016438,2]
[335210781,1723981839472,-500.0,0.00016438,2]
[335210782,1723981839482,-500.0,0.00016438,2]
[335210783,1723981839491,-500.0,0.00016438,2]
[335210784,1723981839501,-500.0,0.00016438,2]
[335210785,1723981839511,-500.0,0.00016438,2]
[335210786,1723981839520,-911.41,0.00016438,2]
[335210787,1723981839530,-500.0,0.00016438,2]
[335210788,1723981839539,-513.1321398,0.00016438,2]
[335210789,1723981839549,-500.0,0.00016438,2]
[335210790,1723981839559,-705.11,0.00016438,2]
[335210791,1723981839569,-575.13,0.00016438,2]
[335210792,1723981839578,-500.0,0.00016438,2]
[335210793,1723981839589,-500.0,0.00016438,2]
[335210794,1723981839599,-500.0,0.00016438,2]
[335210795,1723981839609,-500.0,0.00016438,2]
[335210796,1723981839619,-500.0,0.00016438,2]
[335210797,1723981839629,-500.0,0.00016438,2]
[335210798,1723981839639,-500.0,0.00016438,2]
[335210799,1723981839650,-500.0,0.00016438,2]
[335210800,1723981839660,-500.0,0.00016438,2]
[335210801,1723981839669,-500.0,0.00016438,2]
[335210802,1723981839679,-484.98220317,0.00016438,2]
[335210803,1723981839689,-500.0,0.00016438,2]
[335210805,1723981839698,-500.0,0.00016438,2]
[335210807,1723981839708,-500.0,0.00016438,2]
[335210809,1723981839719,-482.1629594,0.00016438,2]
[335210811,1723981839736,-17.8370406,0.00016438,2]
[335210812,1723981839746,-500.0,0.00016438,2]
[335210813,1723981839755,-500.0,0.00016438,2]
[335210814,1723981839765,-500.0,0.00016438,2]
[335210815,1723981839774,-630.27,0.00016438,2]
[335210816,1723981839784,-500.0,0.00016438,2]
[335210817,1723981839793,-500.0,0.00016438,2]
[335210818,1723981839803,-500.0,0.00016438,2]
[335210819,1723981839812,-500.0,0.00016438,2]
[335210820,1723981839823,-507.46129466,0.00016438,2]
[335210821,1723981839834,-500.0,0.00016438,2]
[335210822,1723981839845,-500.0,0.00016438,2]
[335210823,1723981839854,-500.0,0.00016438,2]
[335210824,1723981839863,-500.0,0.00016438,2]
[335210825,1723981839873,-500.0,0.00016438,2]
[335210826,1723981839885,-500.0,0.00016438,2]
[335210827,1723981839895,-500.0,0.00016438,2]
[335210829,1723981839906,-500.0,0.00016438,2]
[335210831,1723981839915,-500.0,0.00016438,2]
[335210833,1723981839925,-1041.06,0.00016438,2]
[335210835,1723981839935,-500.0,0.00016438,2]
[335210837,1723981839946,-500.0,0.00016438,2]
[335210839,1723981839956,-780.59,0.00016438,2]
[335210841,1723981839966,-679.41,0.00016438,2]
[335210843,1723981839975,-691.57,0.00016438,2]
[335210845,1723981839986,-500.0,0.00016438,2]
[335210847,1723981839995,-500.0,0.00016438,2]
[335210849,1723981840004,-658.55,0.00016438,2]
[335210851,1723981840015,-500.0,0.00016438,2]
[335210853,1723981840025,-543.27,0.00016438,2]
[335210855,1723981840035,-500.0,0.00016438,2]
[335210857,1723981840044,-500.0,0.00016438,2]
[335210859,1723981840054,-500.0,0.00016438,2]
[335210861,1723981840064,-500.0,0.00016438,2]
[335210863,1723981840073,-500.0,0.00016438,2]
[335210865,1723981840083,-500.0,0.00016438,2]
[335210867,1723981840093,-502.50185713,0.00016438,2]
[335210869,1723981840102,-500.0,0.00016438,2]
[335210870,1723981840111,-500.0,0.00016438,2]
[335210871,1723981840120,-500.0,0.00016438,2]
[335210872,1723981840130,-531.34,0.00016438,2]
[335210874,1723981840139,-500.0,0.00016438,2]
[335210875,1723981840148,-249.044177,0.00016438,2]
[335210876,1723981840157,-631.51,0.00016438,2]
[335210877,1723981840167,-616.29,0.00016438,2]
[335210878,1723981840175,-500.0,0.00016438,2]
[335210879,1723981840185,-488.23735691,0.00016438,2]
[335210880,1723981840194,-291.37591361,0.00016438,2]
[335210881,1723981840204,-500.0,0.00016438,2]
[335210882,1723981840213,-632.83200524,0.00016438,2]
[335210883,1723981840222,-852.07,0.00016438,2]
[335210884,1723981840231,-500.0,0.00016438,2]
[335210885,1723981840240,-500.0,0.00016438,2]
[335210886,1723981840250,-500.0,0.00016438,2]
[335210887,1723981840259,-570.65,0.00016438,2]
[335210888,1723981840269,-500.0,0.00016438,2]
[335210889,1723981840279,-500.0,0.00016438,2]
[335210890,1723981840288,-500.0,0.00016438,2]
[335210891,1723981840297,-500.0,0.00016438,2]
[335210892,1723981840307,-500.0,0.00016438,2]
[335210893,1723981840316,-500.0,0.00016438,2]
[335210894,1723981840329,-500.0,0.00016438,2]
[335210895,1723981840338,-500.0,0.00016438,2]
[335210896,1723981840347,-500.0,0.00016438,2]
[335210897,1723981840357,-642.23,0.00016438,2]
[335210898,1723981840368,-500.0,0.00016438,2]
[335210899,1723981840380,-611.5,0.00016438,2]
[335210900,1723981840389,-500.74765746,0.00016438,2]
[335210901,1723981840401,-500.0,0.00016438,2]
[335210902,1723981840411,-500.0,0.00016438,2]
[335210903,1723981840421,-348.75863628,0.00016438,2]
[335210904,1723981840431,-500.0,0.00016438,2]
[335210905,1723981840441,-500.0,0.00016438,2]
[335210906,1723981840451,-500.0,0.00016438,2]
[335210907,1723981840460,-500.0,0.00016438,2]
[335210908,1723981840470,-500.0,0.00016438,2]
[335210909,1723981840480,-500.0,0.00016438,2]
[335210910,1723981840490,-500.0,0.00016438,2]
[335210911,1723981840500,-923.86,0.00016438,2]
[335210912,1723981840510,-500.0,0.00016438,2]
[335210913,1723981840520,-500.0,0.00016438,2]
[335210914,1723981840529,-500.0,0.00016438,2]
[335210915,1723981840538,-500.0,0.00016438,2]
[335210916,1723981840548,-779.1,0.00016438,2]
[335210917,1723981840558,-500.0,0.00016438,2]
[335210918,1723981840567,-500.0,0.00016438,2]
[335210919,1723981840576,-502.76543295,0.00016438,2]
[335210920,1723981840586,-493.19873065,0.00016438,2]
[335210921,1723981840595,-500.0,0.00016438,2]
[335210922,1723981840604,-500.0,0.00016438,2]
[335210923,1723981840614,-500.0,0.00016438,2]
[335210924,1723981840623,-500.0,0.00016438,2]
[335210925,1723981840632,-500.0,0.00016438,2]
[335210926,1723981840643,-500.0,0.00016438,2]
[335210927,1723981840652,-528.20501556,0.00016438,2]
[335210928,1723981840661,-500.0,0.00016438,2]
[335210929,1723981840670,-253.76488195,0.00016438,2]
[335210930,1723981840684,-246.23511805,0.00016438,2]
[335210931,1723981840694,-500.0,0.00016438,2]
[335210932,1723981840703,-500.0,0.00016438,2]
[335210933,1723981840712,-500.0,0.00016438,2]
[335210934,1723981840722,-500.0,0.00016438,2]
[335210935,1723981840731,-500.0,0.00016438,2]
[335210936,1723981840740,-500.0,0.00016438,2]
[335210937,1723981840749,-500.0,0.00016438,2]
[335210938,1723981840759,-523.74,0.00016438,2]
[335210939,1723981840769,-500.0,0.00016438,2]
[335210940,1723981840779,-500.0,0.00016438,2]
[335210941,1723981840788,-509.69,0.00016438,2]
[335210942,1723981840797,-500.0,0.00016438,2]
[335210943,1723981840807,-500.0,0.00016438,2]
[335210944,1723981840817,-300.0,0.00016438,2]
[335210945,1723981840827,-709.73,0.00016438,2]
[335210946,1723981840837,-1000.0,0.00016438,2]
[335210947,1723981840846,-152.69201869,0.00016438,2]
[335210948,1723981840855,-500.0,0.00016438,2]
[335210949,1723981840865,-500.0,0.00016438,2]